Cogmind - Beta 16 @@@ ROGUE MODE // 2025.11.27 @ 18:22:21 Player: The Gourd Result: Self-destructed Performance ------------- Evolutions (0) 0 Regions Visited (3) 600 Robots Destroyed (27) 135 Value Destroyed (747) 747 Prototype IDs (12) 240 Alien Tech Used (0) 0 Bonus (300) 300 TOTAL SCORE: 2022 Bonus ------- Registered with UFD 300 Cogmind --------- Core Integrity 14/250 Matter 290/300 Energy 100/100 System Corruption 0% Temperature Cool (0) Movement Rolling (145) Ox3 Location -8/Scraptown Parts ------- > --- POWER (1) -------- Subdweller Power Source > --- PROPULSION (2) --- Spiked Treads Compact Wheel > --- UTILITY (2) ------ High-capacity Storage Unit Subdweller Optics > --- WEAPON (2) ------- Subdweller Machine Gun Heavy Battle Rifle > --- INVENTORY (20) --- Subdweller Monowheel Flightbrick Subdweller Optics A0-MCA's Component Scanner Subdweller Laser Subdweller Laser Subdweller Beam Cannon Subdweller Machine Gun Subdweller Machine Gun Subdweller Machine Gun Battle Cannon Slug Cannon CPS Tube (2) CPS Tube (2) Companion Sword DRS Beacon (Ready) Peak State ------------ > --- POWER ------------ Subdweller Power Source > --- PROPULSION ------- Spiked Treads Compact Wheel > --- UTILITY ---------- High-capacity Storage Unit Subdweller Optics > --- WEAPON ----------- Subdweller Machine Gun Heavy Battle Rifle > --- INVENTORY -------- Subdweller Monowheel Flightbrick Subdweller Optics A0-MCA's Component Scanner Subdweller Laser Subdweller Laser Subdweller Beam Cannon Subdweller Machine Gun Subdweller Machine Gun Subdweller Machine Gun Battle Cannon Slug Cannon CPS Tube CPS Tube Companion Sword DRS Beacon [Rating: 22] Favorites ----------- Power Subdweller Power Source Engine Subdweller Power Source Propulsion Spiked Treads Treads Spiked Treads Wheel Subdweller Monowheel Utility Large Storage Unit Device Subdweller Optics Storage Large Storage Unit Weapon Heavy Battle Rifle Energy Gun EM Pulse Gun Ballistic Gun Heavy Battle Rifle Ballistic Cannon Battle Cannon Launcher Subdweller Shrapnel Launcher Special Weapon Mining Laser Build | -11 -10 -10 -8 ------- Run | Yrd Mat Sub Scr Slots Evolved . | . . . . Power . | . . . . Propulsion . | . . . . Utility . | . . . . Weapon . | . . . . Parts Attached 34 | 9 2 18 5 Power 4 | 2 . 2 . Engine 4 | 2 . 2 . Core . | . . . . Reactor . | . . . . Propulsion 10 | 2 . 6 2 Treads 4 | 2 . 2 . Leg . | . . . . Wheel 6 | . . 4 2 Hover . | . . . . Flight . | . . . . Utility 9 | 2 1 4 2 Device 6 | 1 . 4 1 Storage 3 | 1 1 . 1 Processor . | . . . . Hackware . | . . . . Protection . | . . . . Artifact . | . . . . Weapon 11 | 3 1 6 1 Energy Gun 2 | 2 . . . Energy Cannon . | . . . . Ballistic Gun 6 | 1 . 4 1 Ballistic Cannon 1 | . . 1 . Launcher 1 | . . 1 . Special Weapon 1 | . 1 . . Impact Weapon . | . . . . Slashing Weapon . | . . . . Piercing Weapon . | . . . . Special Melee Weapon . | . . . . Unidentified Prototypes . | . . . . Parts Lost 9 | . . 9 . Power 2 | . . 2 . Propulsion 2 | . . 2 . Utility 1 | . . 1 . Weapon 4 | . . 4 . Highest Loss Streak 3 | . . 3 . To Critical Strikes . | . . . . Average Backups 11 | 4 7 10 12 Power . | . 1 . . Propulsion 2 | 1 2 2 1 Utility 1 | . 2 1 2 Weapon 6 | 1 2 6 8 Tool/Special . | . . . . Unused Backups 20 | . . 6 14 Power . | . . . . Propulsion 3 | . . 2 1 Utility 4 | . . 2 2 Weapon 11 | . . 2 9 Tool/Special 2 | . . . 2 Average Slot Usage (%) 99 | . 100 98 99 Engine 13 | . 14 13 13 Treads 18 | . 28 19 13 Wheel 9 | . . 8 14 Device 13 | . 14 13 13 Storage 14 | . 14 14 14 Energy Gun 5 | . 22 6 . Ballistic Gun 20 | . 5 17 27 Special Weapon 1 | . . 3 . Peak Build Rating 22 | 7 8 21 22 Average Rating 17 | 5 7 16 20 On Entrance 9 | . 7 8 21 Avg Prop Armor Cover (%) 12 | . . 9 14 Naked Turns . | . . . . Heaviest Build 55 | 15 30 36 55 Greatest Support 40 | 40 40 40 20 Greatest Overweight (x) 3 | . . 1 3 Average Overweight (x) 1 | . . . 2 Largest Inventory Capacity 20 | 8 15 15 20 Average Capacity 15 | 7 11 15 17 Most Carried 19 | 7 8 15 19 Average Carried 13 | 4 7 13 16 Final Capacity 20 | 8 15 15 20 Final Carried 19 | 7 8 15 19 Class Distribution -------------------- 71% | Mutant 16% | Derelict-Mutant 11% | Scavenger-Mutant Dominant Class ---------------- Mutant | -10/Materials Mutant | -10/Subcaves Derelict-Mutant | -8/Scraptown Resources | -11 -10 -10 -8 ----------- Run | Yrd Mat Sub Scr Matter Collected 1249 | 377 46 634 192 Remotely . | . . . . Salvage Created 846 | 226 149 471 . Parts 54 | 15 6 33 . Haulers Intercepted . | . . . . Recyclers Shooed . | . . . . Parts Field Recycled . | . . . . Retrieved Matter . | . . . . Parts Self-Destructed 9 | . . 9 . Prevented . | . . . . Parts Restored . | . . . . Kills | -11 -10 -10 -8 ------- Run | Yrd Mat Sub Scr Combat Hostiles Destroyed 19 | . 5 14 . Guns 15 | . 3 12 . AOE 3 | . 1 2 . Classes Destroyed 5 | 2 2 1 . Tunneler 7 | 7 . . . Recycler 1 | 1 . . . Swarmer 3 | . 3 . . Grunt 4 | . 2 2 . Subdweller 12 | . . 12 . Best Kill Streak 3 | 3 3 2 . Combat Bots Only 3 | . 3 2 . Max Kills in Single Turn 1 | 1 1 1 . Gunslinging . | . . . . Exploded 1 | . 1 1 . Melee . | . . . . Uniques/NPCs Destroyed . | . . . . Combat | -11 -10 -10 -8 -------- Run | Yrd Mat Sub Scr Hostile Shots Fired 83 | . 19 64 . Missed 13 | . 1 12 . Hits 70 | . 18 52 . Projectile 70 | . 18 52 . Critical Strikes 2 | . . 2 . Damage Taken 1369 | . 219 1150 . Core 236 | . 74 162 . Absorbed by Shields . | . . . . Core Remaining (%) 100 | 100 . . . Volleys Fired 124 | 29 21 74 . Largest 2 | 1 2 2 . Hottest 100 | 20 100 100 . Shots Fired 177 | 29 35 113 . Gun 137 | 29 32 76 . Cannon 20 | . . 20 . Launcher 8 | . . 8 . Special 12 | . 3 9 . Kinetic 133 | 29 2 102 . Thermal 12 | . 3 9 . Explosive . | . . . . Electromagnetic 32 | . 30 2 . Robot Hit Streak 13 | 9 12 13 . Robot Miss Streak 4 | 4 3 3 . Penetration Max . | . . . . Secondary Targets . | . . . . Shots Hit Robots 106 | 21 23 62 . Core Hits 40 | 9 7 24 . Critical Kills 1 | . . 1 . Critical Parts Destroyed . | . . . . Critical Strikes 2 | . 1 1 . Destroy 1 | . . 1 . Corrupt 1 | . 1 . . Melee Attacks . | . . . . Impact . | . . . . Slashing . | . . . . Piercing . | . . . . Sneak Attacks . | . . . . Combat Hostiles . | . . . . Follow-up Attacks . | . . . . Damage Inflicted 2199 | 282 478 1439 . Guns 1607 | 282 316 1009 . Cannons 80 | . . 80 . Explosions 512 | . 162 350 . Melee . | . . . . Ramming . | . . . . Kinetic 1750 | 282 29 1439 . Thermal 162 | . 162 . . Explosive . | . . . . Electromagnetic 287 | . 287 . . Impact . | . . . . Slashing . | . . . . Piercing . | . . . . Highest Corruption 1 | . 1 1 1 Average Corruption 1 | . 1 1 1 Corruption Purged . | . . . . Corruption Blocked . | . . . . Effects 40 | . 4 36 . Message Errors 13 | . 3 10 . Matter Fused 5 | . . 5 . Heat Flow Errors 6 | . . 6 . Energy Discharges 5 | . . 5 . Data Loss (minor) 5 | . . 5 . Data Loss (major) 3 | . 1 2 . Misfires 1 | . . 1 . Alerts 2 | . . 2 . Overload Shots . | . . . . Overflow Damage 7 | . 7 . . Projectiles . | . . . . Explosions 7 | . 7 . . Melee . | . . . . Knockbacks 1 | . . 1 . Impact . | . . . . Kinetic 1 | . . 1 . Secondary . | . . . . Self-Inflicted Damage 105 | . 31 74 . Shots 3 | . 1 2 . Rammed . | . . . . Targets Rammed . | . . . . Kicked . | . . . . Crushed . | . . . . Highest Temperature 248 | . 126 248 . Average Temperature 59 | . 41 97 . Received Heat Transfer 219 | . 54 165 . Siege Activations . | . . . . Martial Activations . | . . . . Shielding Activations . | . . . . Robots Disrupted . | . . . . Combat Hostiles . | . . . . Robots Corrupted 1 | . 1 . . Combat Hostiles 1 | . 1 . . Parts Fried 1 | . 1 . . Impact Corruptions . | . . . . Robots Melted . | . . . . Combat Hostiles . | . . . . Parts Melted 2 | . . 2 . Heat Transferred 150 | . 150 . . Parts Sabotaged . | . . . . Parts Stolen . | . . . . Parts Stripped . | . . . . Power Chain Reactions 2 | . 2 . . Alert | -11 -10 -10 -8 ------- Run | Yrd Mat Sub Scr Maximum Alert Level . | . . . . Low Security (%) 100 | 100 100 . . Level 1 . | . . . . Level 2 . | . . . . Level 3 . | . . . . Level 4 . | . . . . Level 5 . | . . . . High Security . | . . . . Max Security . | . . . . Peak Influence 107 | 10 107 . . Initial . | . . . . Average 17 | 1 24 . . Influence Increases 260 | 40 170 50 . Destroy 0b10 Robot/C 140 | . 100 40 . Destroy 0b10 Robot/NC 40 | 40 . . . Destroy Leader 30 | . 20 10 . Successful Hack 4 | . 4 . . Disable Machine 30 | . 30 . . Destroy Structure 16 | . 16 . . Influence Decreases 260 | 40 87 93 40 Entered New Map 81 | . . 41 40 Time Decay 169 | 40 87 42 . Lost Part 10 | . . 10 . Squads Dispatched 2 | . 2 . . Investigation . | . . . . Extermination . | . . . . Reinforcement 2 | . 2 . . Assault . | . . . . Garrison . | . . . . Intercept . | . . . . Searches Triggered . | . . . . Construction Impeded . | . . . . Haulers Reinforced . | . . . . Active Scanning Responses . | . . . . Cargo Convoy Interrupts . | . . . . Stealth | -11 -10 -10 -8 --------- Run | Yrd Mat Sub Scr Distress Signals 1 | . 1 . . Communications Jammed . | . . . . Distress Signals . | . . . . Times Spotted 22 | . 8 14 . Peak Tracking Total 3 | . 3 2 . Tactical Retreats . | . . . . Traps | -11 -10 -10 -8 ------- Run | Yrd Mat Sub Scr Traps Triggered 1 | . 1 . . Indirectly . | . . . . Trap Hack Attempts . | . . . . Triggered . | . . . . Disarmed . | . . . . Reprogrammed . | . . . . Reused . | . . . . Traps Extracted . | . . . . Installed . | . . . . Triggered . | . . . . Machines | -11 -10 -10 -8 ---------- Run | Yrd Mat Sub Scr Machines Disabled 3 | . 2 1 . Max in Single Turn 1 | . 1 1 . Machines Repaired . | . . . . Machines Dismantled . | . . . . Machines Sabotaged . | . . . . Overloaded Fab Kills . | . . . . Hacking | -11 -10 -10 -8 --------- Run | Yrd Mat Sub Scr Machines Accessed 10 | . 1 1 8 Terminals 1 | . 1 . . Fabricators . | . . . . Repair Stations . | . . . . Recycling Units . | . . . . Scanalyzers . | . . . . Garrison Access . | . . . . Total Hacks 52 | . 4 2 46 Successful 49 | . 1 2 46 Failed 3 | . 3 . . Catastrophic . | . . . . Database Lockouts . | . . . . Manual 4 | . 4 . . Terminals 4 | . 4 . . Fabricators . | . . . . Repair Stations . | . . . . Recycling Units . | . . . . Scanalyzers . | . . . . Garrison Access . | . . . . Terminal Hacks 48 | . . 2 46 Record 42 | . . 1 41 Robot Analysis 4 | . . . 4 Open Door 1 | . . . 1 Proto ID Catalog 1 | . . 1 . Fabricator Hacks . | . . . . Repair Station Hacks . | . . . . Recycling Unit Hacks . | . . . . Scanalyzer . | . . . . Garrison Access Hacks . | . . . . Unauthorized Hacks 1 | . 1 . . Terminals 1 | . 1 . . Skim 1 | . 1 . . Fabricators . | . . . . Repair Stations . | . . . . Recycling Units . | . . . . Scanalyzers . | . . . . Garrison Access . | . . . . Data Cores Recovered . | . . . . Used . | . . . . Hacking Detections 1 | . 1 . . Full Trace Events . | . . . . Feedback Events . | . . . . Feedback Blocked . | . . . . Robot Schematics Acquired . | . . . . Robots Built . | . . . . Authchips . | . . . . Time . | . . . . Total Robot Build Rating . | . . . . Part Schematics Acquired . | . . . . Parts Built . | . . . . Authchips . | . . . . Time . | . . . . Total Part Build Rating . | . . . . Part Studies Acquired . | . . . . Parts Repaired . | . . . . Time . | . . . . Parts Recycled . | . . . . Recycled Matter . | . . . . Retrieved Matter . | . . . . Retrieved Components . | . . . . Parts Scanalyzed . | . . . . Part Schematics Acquired . | . . . . Parts Damaged . | . . . . Bothacking | -11 -10 -10 -8 ------------ Run | Yrd Mat Sub Scr Used RIF Installer . | . . . . Robots Hacked . | . . . . Non-combat . | . . . . Combat . | . . . . Robot Hacks Applied . | . . . . Relay Couplers Released . | . . . . Fabnet Peak Effective % . | . . . . Robots Rewired . | . . . . Allies Hacked . | . . . . Hacks Repelled . | . . . . Allies | -11 -10 -10 -8 -------- Run | Yrd Mat Sub Scr Total Allies . | . . . . Largest Group . | . . . . Highest-Rated Group . | . . . . Highest-Rated Ally . | . . . . Total Orders . | . . . . Ally Attacks . | . . . . Total Damage . | . . . . Kills . | . . . . Allies Corrupted . | . . . . Allies Melted . | . . . . Intel | -11 -10 -10 -8 ------- Run | Yrd Mat Sub Scr Active Infowar (turns) 5645 | 58 653 4662 272 Optics 1802 | . . 1530 272 Terrain 2787 | . . 2787 . Seismic 1056 | 58 653 345 . Robot Analysis Total 4 | . . . 4 Derelict Logs Recovered 6 | . . 1 5 Drone Launches . | . . . . Drone Recoveries . | . . . . Exploration | -11 -10 -10 -8 ------------- Run | Yrd Mat Sub Scr Turns Passed 8784 | 285 653 4737 3109 Spaces Moved 4174 | 128 317 1439 2290 Core 3 | 3 . . . Treads 1259 | 125 317 817 . Legs . | . . . . Wheels 2912 | . . 622 2290 Hover . | . . . . Flight . | . . . . Fastest Speed 50 | 50 160 120 120 Average Speed 148 | 157 160 172 132 Slowest Speed 260 | 160 160 260 145 Overloaded Moves . | . . . . Propulsion Burnouts . | . . . . Robots Hopped . | . . . . Potential Cave-ins . | . . . . Cave-ins Triggered . | . . . . Exploration Rate (%) 50 | 7 44 57 93 Regions Visited 3 Branch Regions 2 Pre-discovered Areas 5 | . . 1 4 Known Exits Taken . | . . . . Unknown Exits Taken 3 | 1 1 1 . Scrap Searched 16 | . . 11 5 Spaces Dug 20 | . 3 17 . Terrain Destroyed 90 | . 15 75 . Melee . | . . . . Projectile 4 | . 3 1 . AOE 86 | . 12 74 . Terrain Rammed . | . . . . Walls Destroyed . | . . . . Machines Disabled . | . . . . Actions | -11 -10 -10 -8 --------- Run | Yrd Mat Sub Scr Total 6550 | 178 421 3580 2371 Wait 2126 | 6 78 1988 54 Move 4171 | 127 316 1438 2290 Hop . | . . . . Pick Up 44 | 7 1 28 8 Fast Attach 12 | 7 . 3 2 Attach 12 | . . 8 4 Detach 4 | . . . 4 Swap 27 | 2 4 19 2 Drop 30 | . 1 22 7 Fire 124 | 29 21 74 . Melee . | . . . . Ram . | . . . . Kick . | . . . . Crush . | . . . . Escape Stasis . | . . . . Rewire . | . . . . Trap . | . . . . Miscellaneous . | . . . . Route ------- -11/Scrapyard -10/Materials (discovered 3 exits: [*Mat x2] / *Sub) -10/Subcaves (discovered 2 exits: [*Mat] / *Scr) -8/Scraptown (discovered 2 exits: [*Fac x2]) History --------- Turn | Location | Event 13 | -11/Scrapyard | Discovered new exit (range 15) 286 | -11/Scrapyard | Entered Materials 306 | -10/Materials | Build established: Mutant 550 | -10/Materials | Discovered new exit (range 6) 880 | -10/Materials | Discovered new exit (range 16) 922 | -10/Materials | Discovered new exit (range 5) 939 | -10/Materials | Entered Subcaves 940 | -10/Subcaves | Approached by a straggling Scientist 953 | -10/Subcaves | Scientist uncovered a shortcut to Scraptown 1508 | -10/Subcaves | Visited 4L-MR0's lab 1524 | -10/Subcaves | Found Flightbrick 3705 | -10/Subcaves | Lost 3 parts (1p1n1w) 3828 | -10/Subcaves | Discovered new exit (range 10) 3943 | -10/Subcaves | A swath of the cavern ceiling suddenly collapsed 4054 | -10/Subcaves | Learned location of Zion (-7) 4068 | -10/Subcaves | Core integrity fell below 50% 5494 | -10/Subcaves | Core integrity fell below 20% 5676 | -10/Subcaves | Entered Scraptown 5679 | -8/Scraptown | System corruption cleaned by C-Scrubber 5769 | -8/Scraptown | Visited UFD Registry 5769 | -8/Scraptown | Registered with UFD as "Fluxbot" 5830 | -8/Scraptown | Build established: Scavenger-Mutant 6015 | -8/Scraptown | Heard Great Nut preacher, LISTEN AND RECITE! 6071 | -8/Scraptown | Visited Cyclists 6426 | -8/Scraptown | Discovered new exit (range 11) 6501 | -8/Scraptown | Scanned Subdweller tech in exchange for log data 6503 | -8/Scraptown | Learned location of Extension (-6) 6504 | -8/Scraptown | Learned location of 2 exits from Proximity Caves 6506 | -8/Scraptown | Learned location of 1 exit from Research 6507 | -8/Scraptown | Learned Research terminal intel 6508 | -8/Scraptown | Learned location of Quarantine (-3) 6845 | -8/Scraptown | Visited The Evicted 6887 | -8/Scraptown | Entered Cyclist Reading Room 6927 | -8/Scraptown | Build established: Mutant 6931 | -8/Scraptown | Visited TADAMA 6978 | -8/Scraptown | Visited Awakened 7099 | -8/Scraptown | Visited Symbiants 7130 | -8/Scraptown | Visited Cave Peace 7177 | -8/Scraptown | Visited Supply Room 7238 | -8/Scraptown | Visited A0-MCA Data Center 7246 | -8/Scraptown | Given a B rating by A0-MCA 7251 | -8/Scraptown | Found A0-MCA's Component Scanner 7278 | -8/Scraptown | Visited LU-1G1's Boring Crew 7686 | -8/Scraptown | Visited Research Penetration Think Tank 7716 | -8/Scraptown | Visited Analyses Database 7746 | -8/Scraptown | Visited Observation Area 7782 | -8/Scraptown | Build established: Derelict-Mutant 7813 | -8/Scraptown | Visited Curators Association 7864 | -8/Scraptown | Discovered new exit (range 5) 7981 | -8/Scraptown | Visited Junk Repository 8022 | -8/Scraptown | Visited Sword Containment 8067 | -8/Scraptown | Visited Derelict Rescue Squad 8088 | -8/Scraptown | Found DRS Beacon 8785 | -8/Scraptown | Self-destructed Last Messages --------------- MC's Conveyors then uparmoring and refitting them for who knows what. They're always up to something, I'm afraid to ask. 08533_ O7-C68(c): "Come one, come all! See for yourself a fine selection of the many wondrous pieces in our collection!" 08645_ ???: "I've been waiting for you." 08648_ Acquired Prototype Slashing Weapon. Prototype Slashing Weapon: "Just when I was beginning to fear you'd leave me behind." 08649_ Dropped Prototype Slashing Weapon. Prototype Slashing Weapon: "I get it, it's a funny joke, NOW PICK ME UP AGAIN." 08649_ Acquired Prototype Slashing Weapon. 08650_ Dropped Prototype Slashing Weapon. 08651_ Acquired Prototype Slashing Weapon. 08688_ O7-C68(c): "Come one, come all! See for yourself a fine selection of the many wondrous pieces in our collection!" Map ----- +----------------------------------------------------+ | ##""!##"" ##!!"#### ###### ##??????????????? | | #??????????????? | | #??????????????? | | #################### ###########??????????????? | | ???????????????????## ##????????????????????????? | | #########???????????# #??##???##????????????????? | | #???????????# #??#"###"#????????????????? | | #???????????# #### "!" ####?????????????? | | #???????????# #" """ "#?????????????? | | #???????????# ##"" ""#??????????????? | | #???????????# ##!" "&#??????????????? | | ############# ##"" ""##?????????????? | | ### ######=!#=![#[!## #" "#?????????????? | | ##X ####?#/ # = #!!## ##"" ""##?????????????? | | #?# # # ## ##&" "!#??????????????? | | #?# ## ##"" ""##?????????????? | | #?# ## #" "#?????????????? | | ### ####?###### ##### ## ##########?????????????? | | ### ########### ##### ## ###############????????? | | """ """"""""""" """"" "" "## """"""""""#????????? | | j c "## " "#????????? | | "## """""" "#????????? | | "## "????" "#????????? | | "## "????" "#????????? | | "????" "#????????? | | """"""""""""""""""""" @"## """""" "#????????? | | """"""""""""""""""""" "## "#????????? | | # ################"" "## """""""""#????????? | | ?????????????#"" "##############????????? | | ????????????#"" "## """"#?????????????? | | " "" ????????????#"" "## " "#?????????????? | | ""??????????###"" "## X"#?????????????? | | ?????######## #"" "## "#?????????????? | | "" ???? ""#?????????????? | | "" ???? "## " "#?????????????? | | ????######## #"" "## """"#?????????????? | | "???????????###"" "## """"#?????????????? | | " ""?????????????#"" "##########????????????? | | ??????????????#"" "## " """"#????????????? | | ??????????????#"" "## ""#????????????? | | # ################"" "## "#????????????? | | """"""""""""""""""""" "## ""#????????????? | | """"""""""""""""""""" ""#????????????? | | "## ""#????????????? | | "## """"""#????????????? | | "##"""""""#????????????? | | ##########????????????? | | #????????????????????? | | """"" """"""""""" """""" ##????????????????????? | | ##### ########### ###### #?????????????????????? | +----------------------------------------------------+ Best States ------------- Heat Dissipation 25 Energy Generation 15 Energy Capacity 250 Matter Stores 300 Matter Capacity 300 Sight Range 21 Terrain Scan Range 16 Terrain Scan Density 10 Evasion (%) 40 Recoil Reduction 2 Item Schematics ----------------- None Robot Schematics ------------------ None Fabricated ------------ Nothing Repaired ---------- Nothing Studied --------- None Alien Tech Used ----------------- None Achievements -------------- Bob, First Of His Name Low-level Research Mistaken Identity Nice Directions, Buddy Spot Them First Challenges ------------ None Game ------ Seed ZipCoreSabre Manual? 0 Play Time 00:52:42 Cumulative 151.3 hours Start 2025.10.29 @ 23:30:13 End 2025.11.27 @ 18:22:21 Sessions 3 Manual Loads 0 Difficulty Rogue Special Mode None Game No. 104 Rogue 104 Adventurer 0 Explorer 0 Win Type - Total 2 Types 2/0/0/0/0/0/0/0/0/0 Lore% 46 Gallery% 49 Achievement% 37 Wizard Run 0 Options --------- Layout 2 ASCII 0 Keyboard 1 Movement Vi Keybinds 1 Fullscreen 1 Font 24/Smallcaps Map View 50x49 Zoom Use 0% Tactical HUD 1 Map Filters NONE Filters NONE Steam 1 RUN: 8dbebda1-594b-4d54-ae9f-ad86db6c0a0b